bitfinex/quotes_ETHUSD_20240719
["timestamp","ask_amount","ask_price","bid_price","bid_amount"]
[1721375844143,2.94498,3395.6,3394.8,2.94566]
[1721375844349,2.9449,3395.7,3394.9,2.94559]
[1721375844644,2.9449,3395.7,3395.0,2.94548]
[1721375844850,2.94467,3396.0,3395.2,2.3758]
[1721375845009,2.94481,3395.8,3395.2,2.3758]
[1721375845211,2.94449,3396.2,3395.2,3.20248]
[1721375845412,2.94455,3396.1,3395.3,2.94518]
[1721375845617,2.94455,3396.1,3394.7,0.839162]
[1721375845832,5.94443,3396.3,3394.9,2.94557]
[1721375846038,2.94443,3396.3,3394.9,2.94557]
[1721375846348,2.94478,3395.9,3394.9,2.94557]
[1721375846711,5.8892,3396.1,3395.3,2.94524]
[1721375846916,2.94459,3396.1,3395.3,2.94524]
[1721375847136,2.94439,3396.3,3395.5,2.2513]
[1721375847341,2.94447,3396.2,3395.5,5.19629]
[1721375848452,2.94447,3396.2,3395.6,2.94497]
[1721375848833,2.94429,3396.4,3395.7,2.94489]
[1721375849226,2.94429,3396.4,3395.8,2.9448]
[1721375849413,2.94429,3396.4,3395.9,0.29448]
[1721375849758,2.94412,3396.6,3395.9,0.29448]
[1721375849759,5.8883,3396.6,3395.9,0.29448]
[1721375849950,2.94412,3396.6,3395.9,0.29448]
[1721375850157,2.94421,3396.5,3395.9,0.29448]
[1721375850513,3.0,3396.9,3396.2,2.94439]
[1721375850748,2.944,3396.8,3396.2,0.323887]
[1721375851329,2.944,3396.8,3396.0,2.94458]
[1721375852169,2.944,3396.8,3396.1,2.2962]
[1721375852537,2.944,3396.8,3396.1,5.24075]
[1721375852736,2.9438,3397.0,3396.1,5.24075]
[1721375852936,2.94401,3396.8,3396.1,5.24075]
[1721375853171,2.94401,3396.8,3396.1,6.059296]
[1721375853341,2.94406,3396.7,3396.1,2.2962]
[1721375856778,2.94413,3396.6,3396.1,2.2962]
[1721375856982,2.94406,3396.7,3396.1,2.2962]
[1721375856983,2.9442,3396.5,3396.1,2.2962]
[1721375857341,2.94479,3395.9,3395.2,2.3979]
[1721375857763,2.94498,3395.6,3395.2,2.3979]
[1721375858073,2.94479,3395.9,3395.2,2.3979]
[1721375858074,2.9449,3395.8,3395.2,2.3979]
[1721375858778,2.94458,3396.1,3395.2,2.3979]
[1721375858966,2.94473,3395.9,3395.2,2.3979]
[1721375859166,2.94458,3396.1,3395.2,2.3979]
[1721375859167,2.94447,3396.2,3395.3,0.60180333]
[1721375859356,3.0,3396.6,3395.5,2.94507]
[1721375859555,2.94455,3396.2,3395.5,2.94507]
[1721375860876,2.94464,3396.0,3395.4,2.3449]
[1721375861086,2.94464,3396.0,3395.4,5.29005]
[1721375861453,2.94481,3395.8,3395.4,2.3449]
[1721375862761,2.94464,3396.0,3395.4,2.3449]
[1721375863361,2.94449,3396.2,3395.4,2.3449]
[1721375863362,2.94473,3395.9,3395.4,2.3449]
[1721375864292,5.88916,3396.1,3395.4,2.3449]
[1721375864588,2.9444,3396.3,3395.5,0.823537]
[1721375864811,2.9444,3396.3,3395.6,2.94497]
[1721375864951,5.94405,3396.7,3395.4,2.3449]
[1721375865150,5.94405,3396.7,3396.0,2.94458]
[1721375865151,3.0,3396.7,3396.0,2.94458]
[1721375865357,3.0,3396.7,3395.8,2.94473]
[1721375865358,5.94409,3396.7,3395.8,2.94473]
[1721375865677,5.94409,3396.7,3395.8,3.239203]
[1721375866110,2.94421,3396.5,3395.8,3.239203]
[1721375866282,3.0,3396.7,3395.9,2.94472]
[1721375866616,2.94412,3396.6,3395.9,2.94472]
[1721375867389,2.94421,3396.5,3395.9,2.94472]
[1721375867602,2.94421,3396.5,3395.7,2.94489]
[1721375867805,2.94421,3396.5,3395.7,3.768373]
[1721375867980,5.94397,3396.8,3395.5,2.94504]
[1721375867981,2.9444,3396.3,3395.5,2.94504]
[1721375868183,2.94457,3396.1,3395.5,2.94504]
[1721375869123,2.9444,3396.3,3395.6,2.94498]
[1721375869886,2.94414,3396.6,3395.9,2.94471]
[1721375870087,2.94423,3396.5,3395.7,2.94489]
[1721375870689,2.94436,3396.4,3395.7,2.94489]
[1721375872138,2.94447,3396.2,3395.4,5.29005]
[1721375872899,2.94461,3396.1,3395.4,5.29005]
[1721375874427,2.94432,3396.4,3395.5,2.94506]
[1721375874605,2.94452,3396.2,3395.5,2.94506]
[1721375874806,2.94452,3396.2,3395.6,0.82352]
[1721375875432,2.94432,3396.4,3395.8,2.9448]
[1721375875736,2.94432,3396.4,3395.6,3.76845]
[1721375876735,2.94454,3396.2,3395.5,2.94504]
[1721375876935,2.9446,3396.1,3395.4,5.29005]
[1721375877245,2.94417,3396.6,3395.4,2.3449]
[1721375877798,2.94449,3396.2,3395.4,2.3449]
[1721375878003,2.94449,3396.2,3395.5,2.945]
[1721375878359,2.94434,3396.4,3395.7,2.94489]
[1721375878504,2.9444,3396.3,3395.7,2.94489]
[1721375878833,2.9444,3396.3,3395.5,2.945]
[1721375879034,2.9444,3396.3,3395.5,3.768511]
[1721375879355,2.94431,3396.4,3395.5,3.768511]
[1721375879644,2.9444,3396.3,3395.5,3.768511]
[1721375879821,2.9444,3396.3,3395.6,2.94498]
[1721375880000,2.9444,3396.3,3395.5,3.768511]
[1721375880001,2.9444,3396.3,3395.7,2.94489]
[1721375880254,2.94425,3396.5,3395.7,2.94489]
[1721375880458,2.94457,3396.1,3395.4,2.43775903]
[1721375880960,2.94457,3396.1,3395.4,5.38290903]
[1721375881244,2.94457,3396.1,3395.4,2.43775903]
[1721375881404,2.94482,3395.8,3395.4,0.09285903]
[1721375882140,2.9449,3395.7,3395.4,0.09285903]
[1721375883339,5.34463,3396.3,3395.4,0.09285903]
[1721375883340,2.94481,3395.8,3395.4,0.09285903]
[1721375886056,2.9449,3395.7,3395.4,0.09285903]
[1721375886440,2.945,3395.6,3395.4,0.09285903]
[1721375887464,2.94496,3395.7,3395.4,0.09285903]
[1721375887670,2.94504,3395.6,3395.4,0.09285903]
[1721375890285,2.94435,3396.4,3395.7,2.94484]
[1721375890435,5.94442,3396.3,3395.7,0.8347929]
[1721375890632,5.94442,3396.3,3395.6,2.94498]
[1721375891147,5.94442,3396.3,3395.5,2.3652]
[1721375891148,2.94469,3396.0,3395.5,2.3652]
[1721375894291,2.94451,3396.2,3395.5,5.31024]
[1721375894777,2.94414,3396.6,3395.9,2.94466]
[1721375895636,5.88696,3397.4,3396.1,2.3802]
[1721375895840,2.94346,3397.4,3396.4,2.94422]
[1721375896061,2.94365,3397.2,3396.4,2.94422]
[1721375896273,2.94306,3397.9,3397.0,2.3802]
[1721375896636,2.94318,3397.7,3397.0,5.32397]
[1721375897279,2.94325,3397.6,3397.0,2.3802]
[1721375897460,2.94325,3397.6,3397.1,0.532409]
[1721375898048,2.94342,3397.4,3397.0,2.3802]
[1721375898478,2.94308,3397.8,3397.0,5.32395]
[1721375898639,2.94316,3397.7,3397.0,5.32395]
[1721375898840,2.94303,3397.9,3397.1,5.37174]
[1721375899038,2.94293,3398.0,3397.1,5.37174]
[1721375899277,2.94317,3397.7,3397.2,0.537174]
[1721375899479,2.94328,3397.6,3397.2,0.537174]
[1721375900287,2.94382,3397.0,3396.3,2.4281]
[1721375900636,2.9436,3397.2,3396.3,2.4281]
[1721375900637,2.94387,3396.9,3396.3,2.4281]
[1721375901879,2.94396,3396.8,3396.3,2.4281]
[1721375902045,2.94396,3396.8,3396.3,3.01918769]
[1721375902384,2.4321,3397.7,3396.3,0.59108769]
[1721375902701,2.4321,3397.7,3395.9,2.4991]
[1721375902702,2.94443,3396.3,3395.9,2.4991]
[1721375904179,2.9443,3396.4,3395.9,2.4991]
[1721375904378,2.94406,3396.7,3396.0,2.94463]
[1721375904549,2.94404,3396.7,3396.1,2.94449]
[1721375904755,2.94404,3396.7,3396.2,0.83883]
[1721375904937,2.94392,3396.9,3396.2,0.83883]
[1721375905144,2.94392,3396.9,3396.2,3.78328]
[1721375906200,2.94379,3397.0,3396.2,3.78328]
[1721375906201,2.94395,3396.8,3396.2,3.78328]
[1721375906416,2.94386,3396.9,3396.2,3.78328]
[1721375906550,3.0,3397.5,3396.3,0.672791]
[1721375906863,2.94391,3396.9,3396.3,0.672791]
[1721375907280,2.94397,3396.8,3396.3,0.672791]
[1721375908389,2.94378,3397.0,3396.3,0.672791]
[1721375908589,2.94386,3396.9,3396.3,0.672791]
[1721375909267,2.94386,3396.9,3396.4,0.4456071]
[1721375910271,2.94386,3396.9,3396.3,0.672791]
[1721375910962,2.94368,3397.1,3396.4,2.94428]
[1721375911171,2.94368,3397.1,3396.4,5.37288]
[1721375911478,2.94377,3397.0,3396.4,5.37288]
[1721375912103,2.94387,3396.9,3396.4,2.4286]
[1721375912306,2.94395,3396.8,3396.4,2.4286]
[1721375912463,2.94417,3396.6,3396.4,2.4286]
[1721375912664,2.94395,3396.8,3396.4,2.4286]
[1721375913700,2.9438,3397.0,3395.6,2.4833]
[1721375913701,2.94447,3396.2,3395.6,2.4833]
[1721375913859,2.394,3397.0,3395.6,2.4833]
[1721375913860,2.94469,3396.0,3395.6,2.4833]
[1721375915187,2.94474,3395.9,3395.6,2.4833]
[1721375915894,2.94474,3395.9,3395.4,0.09285903]
[1721375916096,3.103,3396.8,3395.4,0.09285903]
[1721375916403,2.94507,3395.5,3395.4,0.09285903]
[1721375917172,5.89014,3395.5,3395.4,0.09285903]
[1721375917656,2.94507,3395.5,3395.4,0.09285903]
[1721375919373,2.94469,3396.0,3395.4,0.09285903]
[1721375920494,2.94469,3396.0,3395.4,0.63864593]
[1721375920910,2.94482,3395.8,3395.4,0.63864593]
[1721375921821,2.94475,3395.9,3395.4,0.63864593]
[1721375922324,2.94455,3396.1,3395.4,3.58379593]
[1721375922626,2.94447,3396.2,3395.4,0.09285903]
[1721375922935,2.94447,3396.2,3395.4,3.03800903]
[1721375923135,2.94447,3396.2,3395.5,2.94505]
[1721375923304,2.94429,3396.4,3395.5,2.94505]
[1721375923305,2.94429,3396.4,3395.6,5.38563]
[1721375923501,2.94414,3396.6,3395.6,5.38563]
[1721375923502,2.94438,3396.3,3395.7,0.8423539]
[1721375924030,2.94421,3396.5,3395.7,3.84612743]
[1721375924322,2.94421,3396.5,3395.8,2.94479]
[1721375925033,2.94429,3396.4,3395.7,0.8423539]
[1721375925200,2.94308,3397.8,3396.4,2.296]
[1721375925406,2.94368,3397.1,3396.4,2.296]
[1721375925726,2.944,3396.8,3396.4,2.296]
[1721375926528,2.94386,3396.9,3396.4,2.296]
[1721375926892,2.94334,3397.5,3396.5,2.94419]
[1721375926893,2.94352,3397.3,3396.5,2.94419]
[1721375927105,2.94352,3397.3,3396.6,0.818454]
[1721375927335,2.9437,3397.1,3396.6,0.818454]
[1721375927627,2.94352,3397.3,3396.6,0.818454]
[1721375927826,2.94374,3397.1,3396.6,0.818454]
[1721375928129,2.9436,3397.2,3396.6,0.818454]
[1721375928302,2.94369,3397.1,3396.6,0.818454]
[1721375929300,2.94352,3397.3,3396.6,0.818454]
[1721375929301,2.94377,3397.0,3396.6,0.818454]
[1721375929509,2.94377,3397.0,3396.4,2.296]
[1721375930316,2.94365,3397.2,3396.4,5.24028]
[1721375930629,2.94369,3397.1,3396.4,5.24028]
[1721375930993,2.94369,3397.1,3396.4,2.296]
[1721375931318,2.94395,3396.8,3396.4,2.296]
[1721375932217,2.94395,3396.8,3396.5,0.2296]
[1721375934111,2.94382,3397.0,3396.5,0.2296]
[1721375935846,2.94354,3397.3,3396.5,3.17379]
[1721375936051,2.9436,3397.2,3396.5,3.17379]
[1721375936257,2.9436,3397.2,3396.6,0.546979]
[1721375937248,2.9436,3397.2,3396.5,3.17379]
[1721375937716,2.94369,3397.1,3396.5,3.17379]
[1721375938116,2.94369,3397.1,3396.5,0.2296]
[1721375940053,2.94369,3397.1,3396.5,3.1738]
[1721375941729,2.94369,3397.1,3396.5,0.2296]
[1721375942054,2.94377,3397.0,3396.4,2.296]
[1721375943235,2.94387,3396.9,3396.4,2.296]
[1721375943453,2.94375,3397.1,3396.4,2.296]
[1721375944221,2.94375,3397.1,3396.4,5.24028]
[1721375945521,2.94379,3397.0,3396.4,2.296]
[1721375946336,2.94379,3397.0,3396.4,3.114489]
[1721375946961,2.94395,3396.8,3396.4,3.114489]
[1721375947484,2.94395,3396.8,3396.4,2.296]
[1721375948159,2.94379,3397.0,3396.4,2.296]
[1721375948757,2.94368,3397.1,3396.4,2.296]
[1721375949488,2.94386,3396.9,3396.4,2.296]
[1721375950093,2.94368,3397.1,3396.4,2.296]
[1721375950261,2.94355,3397.3,3396.5,3.468216]
[1721375950799,2.94355,3397.3,3396.5,0.524036]
[1721375951080,2.94374,3397.1,3396.4,5.24029]
[1721375951874,2.94374,3397.1,3396.5,2.9442]
[1721375952486,2.94374,3397.1,3396.4,2.296]
[1721375952689,2.94378,3397.0,3396.4,2.296]
[1721375953006,2.94378,3397.0,3396.4,3.114474]
[1721375954923,2.94358,3397.3,3396.4,2.296]
[1721375955094,2.9442,3396.5,3395.8,2.289]
[1721375955639,2.94408,3396.7,3395.9,2.94471]
[1721375955774,2.94417,3396.6,3396.0,0.817854]
[1721375955977,2.94412,3396.6,3396.0,3.762404]
[1721375956997,0.46166254,3396.5,3396.0,0.817854]
[1721375958509,0.46166254,3396.5,3396.2,2.4589]
[1721375958674,0.46166254,3396.5,3396.3,0.6221294]
[1721375959180,0.46166254,3396.5,3396.2,2.4589]
[1721375961016,0.46166254,3396.5,3396.2,5.40335]
[1721375962611,2.94386,3396.9,3396.2,5.40335]
[1721375964119,2.94337,3397.5,3396.2,2.4589]
[1721375964329,2.94358,3397.3,3396.5,2.94413]
[1721375965231,2.94337,3397.5,3396.5,2.94413]
[1721375965390,2.94356,3397.3,3396.5,2.94413]
[1721375965591,2.94337,3397.5,3396.8,2.94393]
[1721375965898,0.46159733,3397.2,3396.8,2.94393]
[1721375966202,0.46159733,3397.2,3396.8,3.767651]
[1721375967510,0.46159733,3397.2,3396.8,0.823721]
[1721375968041,0.46159733,3397.2,3396.6,2.3491]
[1721375968401,2.94372,3397.1,3396.6,2.3491]
[1721375968936,2.94377,3397.0,3396.6,2.3491]
[1721375971667,6.34892733,3397.2,3396.6,2.3491]
[1721375972156,3.40525733,3397.2,3396.6,2.3491]
[1721375973330,3.40525733,3397.2,3396.6,2.878439]
[1721375973534,2.94378,3397.0,3396.6,2.878439]
[1721375973878,2.94378,3397.0,3396.6,2.3491]
[1721375975829,3.40525733,3397.2,3396.6,2.3491]
[1721375975830,0.46159733,3397.2,3396.6,2.3491]
[1721375976025,0.46159733,3397.2,3396.7,2.94401]
[1721375976560,0.46159733,3397.2,3396.6,2.3491]
[1721375977212,2.94383,3397.0,3396.6,2.3491]
[1721375979265,2.94383,3397.0,3396.6,2.878441]
[1721375979452,2.94386,3396.9,3396.6,2.3491]
[1721375980871,2.94372,3397.1,3396.6,2.3491]
[1721375981032,2.94392,3396.9,3396.6,2.3491]
[1721375981470,2.94403,3396.7,3396.6,2.3491]
[1721375981775,2.94392,3396.9,3395.9,8.88942]
[1721375981776,5.88784,3396.9,3396.1,2.94455]
[1721375981985,2.94395,3396.8,3396.2,1.124279]
[1721375982158,2.94403,3396.7,3396.2,1.124279]
[1721375985575,0.46159733,3397.2,3396.2,1.124279]
[1721375985576,2.94378,3397.0,3396.3,5.27755]
[1721375985750,2.94387,3396.9,3396.4,0.6401829]
[1721375986278,2.944,3396.8,3396.4,0.6401829]
[1721375987151,2.94407,3396.7,3396.4,0.6401829]
[1721375987347,2.94407,3396.7,3396.3,2.3332]
[1721375989339,2.94412,3396.6,3396.3,2.3332]
[1721375990246,2.944,3396.8,3396.3,2.3332]
[1721375995975,2.94371,3397.1,3396.3,2.3332]
[1721375996347,2.94371,3397.1,3396.4,0.55]
[1721375996555,2.94371,3397.1,3396.5,0.58275]
[1721375996950,2.94354,3397.3,3396.5,0.58275]
[1721375997154,2.94337,3397.5,3396.7,5.40806]
[1721375997155,2.94345,3397.4,3396.7,5.40806]
[1721375997476,2.94351,3397.3,3396.7,5.40806]
[1721375998091,2.94351,3397.3,3396.7,6.356553]
[1721375999971,2.94351,3397.3,3396.8,0.55]
[1721376000169,2.94351,3397.3,3396.8,0.53571]
[1721376000549,2.94374,3397.1,3396.7,2.32586517]
[1721376001112,2.9439,3396.9,3396.7,2.32586517]
[1721376001262,2.94394,3396.8,3396.7,2.32586517]
[1721376002344,2.94394,3396.8,3396.7,0.55]
[1721376003393,2.94421,3396.5,3395.7,5.94486]
[1721376003685,2.94408,3396.7,3395.9,2.2902]
[1721376003899,2.94414,3396.6,3395.9,5.2902]
[1721376004097,2.94421,3396.5,3395.9,2.2902]
[1721376004254,2.94421,3396.5,3395.9,3.28277826]
[1721376004455,2.9443,3396.4,3395.9,3.28277826]
[1721376004987,2.94414,3396.6,3396.0,0.55]
[1721376005504,2.94422,3396.5,3396.0,0.55]
[1721376005650,2.94403,3396.7,3396.0,1.52775783]
[1721376005651,2.9442,3396.6,3396.0,1.52775783]
[1721376005849,2.94403,3396.7,3396.0,1.52775783]
[1721376006074,2.94404,3396.7,3396.0,1.52775783]
[1721376006348,2.94404,3396.7,3396.0,4.47239783]
[1721376006647,2.94444,3396.3,3395.9,2.2902]
[1721376006846,2.94461,3396.1,3395.9,2.2902]
[1721376007265,2.94448,3396.2,3395.9,2.2902]
[1721376008474,2.94448,3396.2,3395.6,2.4951]
[1721376008684,2.94448,3396.2,3395.7,0.55]
[1721376009370,2.94464,3396.0,3395.7,0.55]
[1721376009982,2.94488,3395.8,3395.4,0.09285903]
[1721376010187,2.27,3396.0,3395.4,0.09285903]
[1721376010488,2.94507,3395.5,3395.4,0.09285903]
[1721376011226,5.27,3396.4,3395.4,0.09285903]
[1721376011417,2.51510811,3396.9,3395.4,0.09285903]
[1721376011418,2.94406,3396.7,3395.9,2.94472]
[1721376011714,2.94426,3396.5,3396.0,2.4951]
[1721376012126,2.94392,3396.9,3396.0,2.4951]
[1721376012490,2.94392,3396.9,3396.1,0.55]
[1721376012999,2.27,3397.3,3396.1,0.55]
[1721376013201,2.94404,3396.7,3396.1,0.55]
[1721376013413,2.94409,3396.7,3396.1,0.55]
[1721376013611,2.94422,3396.5,3396.1,0.55]
[1721376013778,2.94427,3396.5,3396.1,0.55]
[1721376013979,2.94373,3397.1,3396.1,0.55]
[1721376013980,2.94429,3396.4,3396.1,0.55]
[1721376014229,2.27,3397.3,3395.6,2.3521]
[1721376014230,2.94454,3396.2,3395.6,2.3521]
[1721376014397,2.94395,3396.8,3395.6,2.3521]
[1721376014398,2.94443,3396.3,3395.7,0.55]
[1721376014579,2.94426,3396.5,3395.7,0.55]
[1721376014779,2.94413,3396.6,3395.7,0.55]
[1721376015021,2.94429,3396.4,3395.7,0.55]
[1721376015226,2.94413,3396.6,3396.0,2.4564]
[1721376015422,2.94413,3396.6,3396.1,0.55]
[1721376016837,2.94396,3396.8,3396.1,3.49449]
[1721376017143,2.94394,3396.9,3396.1,0.55]
[1721376017432,3.0,3397.0,3395.7,2.94489]
[1721376017433,2.94425,3396.5,3395.7,2.94489]
[1721376017593,2.94423,3396.5,3395.8,3.4948]
[1721376017989,2.94413,3396.6,3395.9,2.94472]
[1721376018232,2.94395,3396.8,3396.0,4.138591]
[1721376018532,2.94395,3396.8,3396.1,2.4915]
[1721376018733,2.94395,3396.8,3396.1,3.0415]
[1721376018886,2.94403,3396.7,3396.1,3.0415]
[1721376019327,0.46167557,3396.6,3396.1,3.0415]
[1721376019500,0.46167557,3396.6,3396.1,3.9989891]
[1721376020832,3.40582557,3396.6,3396.1,3.9989891]
[1721376021515,3.40582557,3396.6,3396.1,3.0415]
[1721376024045,0.46167557,3396.6,3396.1,3.0415]
[1721376024227,0.46167557,3396.6,3396.1,5.98602]
[1721376025334,0.46167557,3396.6,3396.1,3.49452]
[1721376025617,2.94325,3397.6,3396.8,2.94389]
[1721376025813,2.94325,3397.6,3396.9,0.55]
[1721376026141,2.94325,3397.6,3396.9,3.49385]
[1721376027552,2.94334,3397.5,3396.9,0.55]
[1721376027723,2.94334,3397.5,3396.8,0.55]
[1721376027931,2.94334,3397.5,3396.8,4.37656]
[1721376028246,2.94302,3397.9,3396.9,2.94386]
[1721376028415,5.94309,3397.8,3397.0,2.8965]
[1721376028617,5.94309,3397.8,3397.0,5.84026]
[1721376030320,2.72063762,3398.8,3397.1,2.47306882]
[1721376030520,2.72063762,3398.8,3397.0,0.55]
[1721376030521,2.4023,3398.8,3397.4,2.94334]
[1721376030763,2.94274,3398.2,3397.3,2.4142]
[1721376030929,2.94274,3398.2,3397.4,0.55]
[1721376031135,2.94282,3398.1,3397.4,0.55]
[1721376034231,2.94274,3398.2,3397.7,0.55]
[1721376035432,3.0,3398.4,3397.1,2.3668]
[1721376035763,2.94301,3397.9,3397.1,2.3668]
[1721376035927,2.94313,3397.8,3397.1,2.3668]
[1721376036444,2.4592,3398.2,3397.1,2.3668]
[1721376036655,2.94321,3397.7,3397.1,2.3668]
[1721376037132,2.94321,3397.7,3397.2,0.55]
[1721376038147,2.4592,3398.2,3397.1,2.3668]
[1721376038148,2.94343,3397.4,3397.1,2.3668]
[1721376038544,2.94357,3397.3,3396.8,2.4082]
[1721376038744,2.94357,3397.3,3395.7,1.53590592]
[1721376038745,2.94373,3397.1,3396.4,2.4082]
[1721376039056,2.9437,3397.1,3396.4,2.4082]
[1721376039965,2.94362,3397.2,3396.5,0.55]
[1721376040259,2.94376,3397.1,3396.5,0.55]
[1721376040456,2.94378,3397.0,3396.5,0.55]
[1721376040867,2.94366,3397.2,3396.5,0.55]
[1721376041022,2.94377,3397.1,3396.5,0.55]
[1721376041696,2.94353,3397.3,3396.5,3.4942]
[1721376041965,5.3594,3397.8,3396.5,3.4942]
[1721376041966,2.94325,3397.6,3396.6,6.13796597]
[1721376042177,2.94325,3397.6,3396.8,2.94394]
[1721376042376,2.94336,3397.5,3396.9,0.55]
[1721376043238,2.94343,3397.4,3396.9,0.55]
[1721376043560,2.94343,3397.4,3396.7,0.55]
[1721376045322,2.94336,3397.5,3396.6,5.19441]
[1721376045323,2.471,3397.6,3396.6,2.2503]
[1721376045611,2.471,3397.6,3396.2,2.3294]
[1721376045612,2.94438,3396.3,3396.2,2.3294]
[1721376046125,2.9442,3396.5,3396.2,2.3294]
[1721376046975,2.94431,3396.4,3396.2,2.3294]
[1721376047200,2.94422,3396.5,3396.2,2.3294]
[1721376047415,2.94413,3396.6,3396.2,2.3294]
[1721376047713,2.94322761,3396.5,3396.2,2.3294]
[1721376049192,5.94365,3397.2,3396.2,2.56234]
[1721376049193,3.0,3397.2,3396.2,2.56234]
[1721376049369,5.41429,3397.6,3396.3,0.55]
[1721376049370,2.94401,3396.8,3396.3,0.55]
[1721376049700,2.94377,3397.0,3396.3,0.55]
[1721376049871,3.0,3397.5,3396.4,0.582387]
[1721376049872,5.94386,3396.9,3396.4,0.582387]
[1721376050207,5.94386,3396.9,3396.5,0.55]
[1721376050370,2.94412,3396.6,3396.2,2.3294]
[1721376050570,3.0,3396.9,3396.2,2.3294]
[1721376050571,2.94426,3396.5,3396.2,2.3294]
[1721376050771,2.94469,3396.0,3395.7,2.4261]
[1721376051077,2.94459,3396.1,3395.7,2.6779959]
[1721376051400,2.9446,3396.1,3395.7,2.4261]
[1721376052403,2.94424,3396.5,3395.7,5.37094]
[1721376052594,2.94424,3396.5,3395.8,0.55]
[1721376052793,2.94404,3396.7,3395.8,3.49481]
[1721376053106,5.94413,3396.6,3395.8,3.49474]
[1721376053401,2.94413,3396.6,3395.9,3.83125]
[1721376053608,2.94413,3396.6,3396.0,0.55]
[1721376053769,2.94389,3396.9,3396.0,3.49463]
[1721376054305,5.94371,3397.1,3396.1,2.3917]
[1721376054514,2.94394,3396.8,3396.2,0.55]
[1721376054802,2.94371,3397.1,3396.4,2.3917]
[1721376054963,2.9436,3397.2,3396.5,3.4942]
[1721376056806,2.94368,3397.1,3396.5,0.55]
[1721376057107,2.94377,3397.0,3396.5,0.55]
[1721376057674,2.94329,3397.6,3396.5,0.55]
[1721376057881,3.0,3397.5,3396.5,0.55]
[1721376058282,2.94364,3397.2,3396.5,0.55]
[1721376058577,2.94353,3397.3,3396.5,3.49416]
[1721376058780,2.9436,3397.2,3396.6,0.88301]
[1721376058979,2.94369,3397.1,3396.7,0.55]
[1721376059213,2.94369,3397.1,3396.4,2.3917]
[1721376059214,2.94392,3396.9,3396.4,2.3917]
[1721376059584,2.94392,3396.9,3396.5,0.55]
[1721376060384,2.94395,3396.8,3396.5,0.55]
[1721376061122,2.94407,3396.7,3396.5,0.55]
[1721376062416,2.9439,3396.9,3396.5,0.55]
[1721376062719,2.94387,3396.9,3396.5,0.55]
[1721376063224,2.94394,3396.8,3396.5,0.55]
[1721376063717,2.94405,3396.7,3396.5,0.55]
[1721376065514,2.94372,3397.1,3396.6,0.29417]
[1721376065717,2.94372,3397.1,3396.7,0.55]
[1721376065892,2.94372,3397.1,3396.5,0.55]
[1721376066297,2.94372,3397.1,3396.6,2.463]
[1721376066502,2.94378,3397.0,3396.7,0.55]
[1721376066726,2.94389,3396.9,3396.7,0.55]
[1721376067231,2.94394,3396.8,3396.1,2.463]
[1721376067536,2.94337,3397.5,3396.1,3.00376]
[1721376067537,2.94426,3396.5,3396.1,3.00376]
[1721376067711,2.94426,3396.5,3396.1,2.463]
[1721376069227,2.94426,3396.5,3396.2,0.55]
[1721376069529,2.94389,3396.9,3396.2,0.55]
[1721376069832,2.94389,3396.9,3396.4,2.4572]
[1721376070028,2.94389,3396.9,3396.5,0.55]
[1721376070392,2.9437,3397.1,3396.5,0.55]
[1721376070607,2.9437,3397.1,3396.6,2.2866]
[1721376070803,5.4786,3397.9,3396.7,0.55]
[1721376070804,2.94336,3397.5,3396.7,0.55]
[1721376071032,2.94336,3397.5,3396.8,2.94389]
[1721376071214,2.94336,3397.5,3396.9,3.130989]
[1721376071415,2.94298,3398.0,3397.1,2.3695]
[1721376071727,2.94298,3398.0,3397.3,2.3695]
[1721376071931,2.94308,3397.8,3397.4,0.55]
[1721376073238,2.94283,3398.1,3397.3,2.3695]
[1721376073537,2.94341,3397.5,3397.3,2.3695]
[1721376075039,2.94314,3397.8,3397.3,2.3695]
[1721376075351,2.94293,3398.0,3397.4,0.55]
[1721376075537,3.0,3398.4,3397.4,0.55]
[1721376075538,2.94308,3397.8,3397.4,0.55]
[1721376076096,2.94317,3397.7,3397.4,0.55]
[1721376076333,2.9432,3397.7,3397.3,2.3695]
[1721376077741,2.94308,3397.8,3397.3,2.3695]
[1721376078478,3.0,3398.4,3397.3,2.3695]
[1721376078479,2.94282,3398.1,3397.3,5.844278]
[1721376078655,2.94282,3398.1,3397.4,0.55]
[1721376079042,2.94282,3398.1,3397.4,3.49337]
[1721376084563,2.94282,3398.1,3397.5,2.3216]
[1721376084766,2.94282,3398.1,3397.6,0.55]
[1721376085901,3.0,3399.0,3397.6,0.55]
[1721376085902,2.94253,3398.5,3397.7,5.19915]
[1721376086102,2.94258,3398.4,3397.8,0.55]
[1721376087227,2.4925,3399.1,3397.8,0.55]
[1721376087228,2.94244,3398.6,3397.9,2.94293]
[1721376087424,2.94244,3398.6,3398.0,1.19949369]
[1721376087720,2.94247,3398.5,3398.0,1.19949369]
[1721376090531,2.94224,3398.8,3398.0,1.19949369]
[1721376090743,2.94241,3398.6,3398.0,1.19949369]
[1721376091034,2.94241,3398.6,3398.1,2.3168]
[1721376091237,2.94241,3398.6,3398.1,2.96272237]
[1721376092844,2.94224,3398.8,3398.1,2.96272237]
[1721376092845,2.94224,3398.8,3398.2,3.49272]
[1721376094110,2.94204,3399.0,3398.3,2.2662]
[1721376094509,2.94215,3398.9,3398.3,2.2662]
[1721376094703,3.0,3399.1,3398.3,2.3250507]